bitfinex/quotes_BTCUSD_20241027
["timestamp","ask_amount","ask_price","bid_price","bid_amount"]
[1729995234032,0.45232571,67076.0,67075.0,0.149086]
[1729995235355,0.45232671,67076.0,67075.0,0.149086]
[1729995236504,0.43834976,67076.0,67075.0,0.149086]
[1729995236734,0.34890314,67076.0,67075.0,0.149086]
[1729995236978,0.45232781,67076.0,67075.0,0.149086]
[1729995237194,0.43835052,67076.0,67075.0,0.149086]
[1729995238298,0.45232789,67076.0,67075.0,0.149086]
[1729995238720,0.36288051,67076.0,67075.0,0.149086]
[1729995239142,0.45232789,67076.0,67075.0,0.149086]
[1729995239810,0.45232848,67076.0,67075.0,0.149086]
[1729995240031,0.1838072,67076.0,67075.0,0.149086]
[1729995240285,0.34889338,67076.0,67075.0,0.149086]
[1729995240508,0.19778504,67076.0,67075.0,0.149086]
[1729995240946,0.36286967,67076.0,67075.0,0.149086]
[1729995241172,0.34889183,67076.0,67075.0,0.149086]
[1729995241466,0.02298558,67076.0,67075.0,0.149086]
[1729995241680,0.09006589,67076.0,67075.0,0.149086]
[1729995242555,0.02298558,67076.0,67075.0,0.149086]
[1729995243463,0.18806925,67076.0,67075.0,0.149086]
[1729995243704,0.02298558,67076.0,67075.0,0.149086]
[1729995244613,0.09006705,67076.0,67075.0,0.149086]
[1729995245769,0.09006717,67076.0,67075.0,0.149086]
[1729995246667,0.02298558,67076.0,67075.0,0.149086]
[1729995247123,0.09007025,67076.0,67075.0,0.149086]
[1729995247571,0.02298558,67076.0,67075.0,0.149086]
[1729995248023,0.09007154,67076.0,67075.0,0.149086]
[1729995249465,0.02298558,67076.0,67075.0,0.149086]
[1729995251970,0.18809356,67076.0,67075.0,0.149086]
[1729995252227,0.02298558,67076.0,67075.0,0.149086]
[1729995252639,0.11243365,67076.0,67075.0,0.149086]
[1729995252855,0.02299196,67076.0,67075.0,0.149086]
[1729995253554,0.11243365,67076.0,67075.0,0.149086]
[1729995253775,0.27755263,67076.0,67075.0,0.149086]
[1729995254673,0.18811094,67076.0,67075.0,0.149086]
[1729995255160,0.27755263,67076.0,67075.0,0.149086]
[1729995256291,0.18811094,67076.0,67075.0,0.149086]
[1729995256528,0.02299196,67076.0,67075.0,0.149086]
[1729995257029,0.18813387,67076.0,67075.0,0.149086]
[1729995257248,0.18813463,67076.0,67075.0,0.149086]
[1729995257474,0.02299196,67076.0,67075.0,0.149086]
[1729995259058,0.18814051,67076.0,67075.0,0.149086]
[1729995260655,0.18814579,67076.0,67075.0,0.149086]
[1729995261366,0.27762596,67076.0,67075.0,0.149086]
[1729995261793,0.2636412,67076.0,67075.0,0.149086]
[1729995262008,0.27762676,67076.0,67075.0,0.149086]
[1729995264060,0.2999968,67076.0,67075.0,0.149086]
[1729995264513,0.18814659,67076.0,67075.0,0.149086]
[1729995265014,0.02299276,67076.0,67075.0,0.149086]
[1729995265237,0.18814659,67076.0,67075.0,0.149086]
[1729995265459,0.11248772,67076.0,67075.0,0.149086]
[1729995265700,0.02299276,67076.0,67075.0,0.149086]
[1729995265951,0.18814659,67076.0,67075.0,0.149086]
[1729995266619,0.1881775,67076.0,67075.0,0.149086]
[1729995267048,0.11248932,67076.0,67075.0,0.149086]
[1729995267267,0.27767406,67076.0,67075.0,0.149086]
[1729995267482,0.1881775,67076.0,67075.0,0.149086]
[1729995267920,0.11249252,67076.0,67075.0,0.149086]
[1729995268131,0.1348639,67076.0,67075.0,0.149086]
[1729995268364,0.30004864,67076.0,67075.0,0.149086]
[1729995268844,0.1881775,67076.0,67075.0,0.149086]
[1729995269106,0.17419194,67076.0,67075.0,0.149086]
[1729995269328,0.18817996,67076.0,67075.0,0.149086]
[1729995269576,0.3000511,67076.0,67075.0,0.149086]
[1729995270484,0.18817996,67076.0,67075.0,0.149086]
[1729995271196,0.11250222,67076.0,67075.0,0.149086]
[1729995271654,0.18817996,67076.0,67075.0,0.149086]
[1729995271887,0.3000511,67076.0,67075.0,0.149086]
[1729995272110,0.18817996,67076.0,67075.0,0.149086]
[1729995272596,0.3000511,67076.0,67075.0,0.149086]
[1729995272832,0.3000513,67076.0,67075.0,0.149086]
[1729995273705,0.18818016,67076.0,67075.0,0.149086]
[1729995273920,0.3000513,67076.0,67075.0,0.149086]
[1729995274868,0.18818016,67076.0,67075.0,0.149086]
[1729995276186,0.27771232,67076.0,67075.0,0.149086]
[1729995276412,0.2637241,67076.0,67075.0,0.149086]
[1729995276643,0.27771194,67076.0,67075.0,0.149086]
[1729995278649,0.18820265,67076.0,67075.0,0.149086]
[1729995279176,0.27771194,67076.0,67075.0,0.149086]
[1729995279600,0.18820265,67076.0,67075.0,0.149086]
[1729995280285,0.18820122,67076.0,67075.0,0.149086]
[1729995280497,0.02299361,67076.0,67075.0,0.149086]
[1729995280942,0.01522762,67076.0,67075.0,0.149086]
[1729995281587,0.18043053,67076.0,67075.0,0.149086]
[1729995281818,0.02299269,67076.0,67075.0,0.149086]
[1729995282266,0.01522762,67076.0,67075.0,0.149086]
[1729995282924,0.1881989,67076.0,67075.0,0.149086]
[1729995283142,0.27770819,67076.0,67075.0,0.149086]
[1729995283579,0.1881989,67076.0,67075.0,0.149086]
[1729995284045,0.18819803,67076.0,67075.0,0.149086]
[1729995284268,0.27770732,67076.0,67075.0,0.149086]
[1729995284492,0.18819803,67076.0,67075.0,0.149086]
[1729995285161,0.17421249,67076.0,67075.0,0.149086]
[1729995285455,0.1881979,67076.0,67075.0,0.149086]
[1729995286588,0.27770719,67076.0,67075.0,0.149086]
[1729995287530,0.1881979,67076.0,67075.0,0.149086]
[1729995287761,0.27770674,67076.0,67075.0,0.149086]
[1729995288673,0.1881979,67076.0,67075.0,0.149086]
[1729995288933,0.30008453,67076.0,67075.0,0.149086]
[1729995289177,0.1881979,67076.0,67075.0,0.149086]
[1729995290331,0.18820184,67076.0,67075.0,0.149086]
[1729995291655,0.11250185,67076.0,67075.0,0.149086]
[1729995291918,0.27771189,67076.0,67075.0,0.149086]
[1729995292139,0.27771175,67076.0,67075.0,0.149086]
[1729995295068,0.27771136,67076.0,67075.0,0.149086]
[1729995297883,0.18820106,67076.0,67075.0,0.149086]
[1729995298100,0.27771136,67076.0,67075.0,0.149086]
[1729995298554,0.18820106,67076.0,67075.0,0.149086]
[1729995299019,0.27771136,67076.0,67075.0,0.149086]
[1729995299953,0.2777078,67076.0,67075.0,0.149086]
[1729995300388,0.18819875,67076.0,67075.0,0.149086]
[1729995300870,0.09012308,67076.0,67075.0,0.149086]
[1729995301535,0.06837267,67076.0,67075.0,0.149086]
[1729995301772,0.09012317,67076.0,67075.0,0.149086]
[1729995302003,0.01522671,67076.0,67075.0,0.149086]
[1729995302457,0.00124121,67076.0,67075.0,0.149086]
[1729995302683,0.01522686,67076.0,67075.0,0.149086]
[1729995304533,0.05997451,67076.0,67075.0,0.149086]
[1729995304965,0.06773951,67076.0,67075.0,0.149086]
[1729995305649,0.02299186,67076.0,67075.0,0.149086]
[1729995307710,0.09012332,67076.0,67075.0,0.149086]
[1729995307926,0.11250091,67076.0,67075.0,0.149086]
[1729995308400,0.27767373,67076.0,67075.0,0.149086]
[1729995308655,0.55105029,67076.0,67075.0,0.149086]
[1729995308870,0.47505099,67076.0,67075.0,0.149086]
[1729995309529,0.30005099,67076.0,67075.0,0.149086]
[1729995309747,0.27765692,67076.0,67075.0,0.149086]
[1729995309964,0.18816468,67076.0,67075.0,0.149086]
[1729995310192,0.26366876,67076.0,67075.0,0.149086]
[1729995310421,0.18816234,67076.0,67075.0,0.149086]
[1729995310652,0.27765207,67076.0,67075.0,0.149086]
[1729995310878,0.18816234,67076.0,67075.0,0.149086]
[1729995313252,0.30004865,67076.0,67075.0,0.149086]
[1729995316057,0.00041921,67071.0,67070.0,0.44729]
[1729995316278,0.11030252,67071.0,67070.0,0.44729]
[1729995316496,0.28323838,67071.0,67070.0,0.44729]
[1729995316735,0.39508382,67071.0,67070.0,0.44729]
[1729995316977,0.40397411,67071.0,67070.0,0.149097]
[1729995317230,0.5158305,67071.0,67070.0,0.149097]
[1729995317472,0.38160237,67071.0,67070.0,0.149097]
[1729995317714,0.40396598,67071.0,67070.0,0.149097]
[1729995317936,0.51580027,67071.0,67070.0,0.149097]
[1729995318165,0.40396598,67071.0,67070.0,0.149097]
[1729995318847,0.23880089,67071.0,67070.0,0.149097]
[1729995319321,0.4039037,67071.0,67070.0,0.149097]
[1729995320681,0.23880089,67071.0,67070.0,0.149097]
[1729995320876,0.2387765,67071.0,67070.0,0.149097]
[1729995322659,0.21642533,67071.0,67070.0,0.149097]
[1729995323145,0.39496117,67071.0,67070.0,0.149097]
[1729995323814,0.13396198,67071.0,67070.0,0.149097]
[1729995324505,0.1199925,67071.0,67070.0,0.149097]
[1729995324724,0.13395702,67071.0,67070.0,0.149097]
[1729995326273,0.02214381,67071.0,67070.0,0.149097]
[1729995327548,0.02214317,67071.0,67070.0,0.149097]
[1729995328270,0.0892049,67071.0,67070.0,0.149097]
[1729995328492,0.02214317,67071.0,67070.0,0.149097]
[1729995330801,0.06684619,67071.0,67070.0,0.149097]
[1729995331269,0.02214317,67071.0,67070.0,0.149097]
[1729995333542,0.06684619,67071.0,67070.0,0.149097]
[1729995333768,0.02214317,67071.0,67070.0,0.149097]
[1729995338934,0.00817929,67071.0,67070.0,0.149097]
[1729995339154,0.02215359,67071.0,67070.0,0.149097]
[1729995340948,0.06685455,67071.0,67070.0,0.149097]
[1729995341597,0.06685573,67071.0,67070.0,0.149097]
[1729995341836,0.02215359,67071.0,67070.0,0.149097]
[1729995342542,0.02297559,67071.0,67070.0,0.149097]
[1729995342983,0.06767773,67071.0,67070.0,0.149097]
[1729995343686,0.02297559,67071.0,67070.0,0.149097]
[1729995343909,0.06767911,67071.0,67070.0,0.149097]
[1729995347614,0.06768308,67071.0,67070.0,0.149097]
[1729995347838,0.02297559,67071.0,67070.0,0.149097]
[1729995348284,0.0900288,67071.0,67070.0,0.149097]
[1729995349233,0.02297559,67071.0,67070.0,0.149097]
[1729995349486,0.00041921,67067.0,67066.0,0.47229967]
[1729995349703,0.05910819,67067.0,67066.0,0.47229967]
[1729995350001,0.05911681,67067.0,67066.0,0.47229967]
[1729995350225,0.06687336,67067.0,67066.0,0.47229967]
[1729995350906,0.06687529,67067.0,67066.0,0.47229967]
[1729995352274,0.02215868,67067.0,67066.0,0.47229967]
[1729995352535,0.06688175,67067.0,67066.0,0.47229967]
[1729995353217,0.06688168,67067.0,67066.0,0.47229967]
[1729995353669,0.02215868,67067.0,67066.0,0.47229967]
[1729995355648,0.0892336,67067.0,67066.0,0.47229967]
[1729995356534,0.12053524,67067.0,67066.0,0.17408967]
[1729995356747,0.30926847,67067.0,67066.0,0.17408967]
[1729995356963,0.47439736,67067.0,67066.0,0.17408967]
[1729995357199,0.3760208,67067.0,67066.0,0.17408967]
[1729995360233,0.37605432,67067.0,67066.0,0.17408967]
[1729995360727,0.52648508,67067.0,67066.0,0.001644]
[1729995360945,0.5404648,67067.0,67066.0,0.001644]
[1729995362947,0.52648508,67067.0,67066.0,0.15075]
[1729995363157,0.54045905,67067.0,67066.0,0.001644]
[1729995363305,0.62165905,67067.0,67066.0,0.001644]
[1729995363727,0.60768508,67067.0,67066.0,0.001644]
[1729995364983,0.62165916,67067.0,67066.0,0.001644]
[1729995367135,0.86913972,67067.0,67066.0,0.001644]
[1729995367341,0.87913972,67067.0,67066.0,0.001644]
[1729995367561,0.78076316,67067.0,67066.0,0.001644]
[1729995368634,0.63165916,67067.0,67066.0,0.001644]
[1729995369550,0.63165011,67067.0,67066.0,0.001644]
[1729995371109,0.75324603,67067.0,67066.0,0.001644]
[1729995372180,0.63165011,67067.0,67066.0,0.001644]
[1729995372812,0.63145657,67067.0,67066.0,0.001644]
[1729995373458,0.63145522,67067.0,67066.0,0.001644]
[1729995375439,0.78055922,67067.0,67066.0,0.001644]
[1729995376462,0.78138122,67067.0,67066.0,0.001644]
[1729995376688,0.89306039,67067.0,67066.0,0.001644]
[1729995377531,0.74395639,67067.0,67066.0,0.001644]
[1729995377737,0.89306039,67067.0,67066.0,0.001644]
[1729995377954,0.78138122,67067.0,67066.0,0.001644]
[1729995379961,0.00541921,67065.0,67064.0,0.0013903]
[1729995380169,0.35717165,67065.0,67064.0,0.0013903]
[1729995380391,0.36492372,67065.0,67064.0,0.0013903]
[1729995380623,0.4542621,67065.0,67064.0,0.0013903]
[1729995380855,0.36492372,67065.0,67064.0,0.0013903]
[1729995383660,0.19998831,67065.0,67064.0,0.0013903]
[1729995384931,0.45709731,67065.0,67064.0,0.0013903]
[1729995387234,0.53869731,67065.0,67064.0,0.0013903]
[1729995387654,0.64129392,67065.0,67064.0,0.0013903]
[1729995388393,0.6049807,67065.0,67064.0,0.0013903]
[1729995388609,0.64132922,67065.0,67064.0,0.0013903]
[1729995388739,0.53873261,67065.0,67064.0,0.0013903]
[1729995391310,0.58440891,67065.0,67064.0,0.0013903]
[1729995391538,0.58640891,67065.0,67064.0,0.0013903]
[1729995391739,0.58440891,67065.0,67064.0,0.0013903]
[1729995393183,0.75236862,67065.0,67064.0,0.0013903]
[1729995393847,0.58740891,67065.0,67064.0,0.0013903]
[1729995394862,0.58840891,67065.0,67064.0,0.0013903]
[1729995395214,0.00541921,67059.0,67058.0,0.12021266]
[1729995395332,0.19227154,67059.0,67058.0,0.12021266]
[1729995395532,0.005,67058.0,67057.0,0.37317179]
[1729995395757,0.1995946,67058.0,67057.0,0.15077]
[1729995395989,0.17764549,67058.0,67057.0,0.15077]
[1729995398118,0.17764549,67058.0,67057.0,0.001644]
[1729995398539,0.17764549,67058.0,67057.0,0.15077]
[1729995399362,0.17764433,67058.0,67057.0,0.15077]
[1729995401370,0.45442026,67058.0,67057.0,0.15077]
[1729995401820,0.34266216,67058.0,67057.0,0.001644]
[1729995402263,0.34267419,67058.0,67057.0,0.001644]
[1729995402487,0.45444044,67058.0,67057.0,0.001644]
[1729995404091,0.45444044,67058.0,67057.0,0.15077]
[1729995404765,0.34267419,67058.0,67057.0,0.15077]
[1729995405001,0.45447256,67058.0,67057.0,0.15077]
[1729995405220,0.34267419,67058.0,67057.0,0.15077]
[1729995406313,0.34267419,67058.0,67057.0,0.001644]
[1729995406946,0.34274154,67058.0,67057.0,0.001644]
[1729995408105,0.4545521,67058.0,67057.0,0.001644]
[1729995408546,0.34274154,67058.0,67057.0,0.001644]
[1729995409435,0.45455401,67058.0,67057.0,0.001644]
[1729995409930,0.34274154,67058.0,67057.0,0.001644]
[1729995410155,0.49186554,67058.0,67057.0,0.001644]
[1729995410401,0.57476554,67058.0,67057.0,0.001644]
[1729995412901,0.73526935,67058.0,67057.0,0.001644]
[1729995413118,0.83106935,67058.0,67057.0,0.001644]
[1729995413357,0.96724359,67058.0,67057.0,0.001644]
[1729995413581,0.83306935,67058.0,67057.0,0.001644]
[1729995413874,0.96723345,67058.0,67057.0,0.001644]
[1729995414529,0.87874588,67058.0,67057.0,0.001644]
[1729995414983,0.84961863,67058.0,67057.0,0.001644]
[1729995415217,0.28249577,67049.0,67048.0,0.22240179]
[1729995415433,0.61207583,67049.0,67048.0,0.22240179]
[1729995415659,0.005,67046.0,67044.0,0.149153]
[1729995415884,0.23154654,67045.0,67044.0,0.149153]
[1729995416107,0.23969523,67045.0,67044.0,0.149153]
[1729995418194,0.23969304,67045.0,67044.0,0.149153]
[1729995420784,0.23968817,67045.0,67044.0,0.149153]
[1729995421029,0.23968586,67045.0,67044.0,0.149153]
[1729995422138,0.23968586,67045.0,67044.0,0.150797]
[1729995422352,0.17262704,67045.0,67044.0,0.150797]
[1729995425514,0.1586525,67045.0,67044.0,0.150797]
[1729995425724,0.17262175,67045.0,67044.0,0.150797]
[1729995425933,0.1586525,67045.0,67044.0,0.150797]
[1729995426839,0.17262171,67045.0,67044.0,0.150797]
[1729995428440,0.23966449,67045.0,67044.0,0.150797]
[1729995429371,0.17262171,67045.0,67044.0,0.150797]
[1729995432201,0.21731831,67045.0,67044.0,0.150797]
[1729995432857,0.21731817,67045.0,67044.0,0.150797]
[1729995433717,0.21731905,67045.0,67044.0,0.150797]
[1729995436177,0.20334896,67045.0,67044.0,0.150797]
[1729995436382,0.21732148,67045.0,67044.0,0.150797]
[1729995437977,0.23966992,67045.0,67044.0,0.150797]
[1729995438407,0.17262502,67045.0,67044.0,0.150797]
[1729995441392,0.23966992,67045.0,67044.0,0.150797]
[1729995443445,0.23966992,67045.0,67044.0,0.001644]
[1729995443688,0.42705129,67045.0,67044.0,0.001644]
[1729995443910,0.43205129,67045.0,67044.0,0.001644]
[1729995444356,0.34265808,67045.0,67044.0,0.001644]
[1729995444580,0.60355259,67045.0,67044.0,0.001644]
[1729995444807,0.34265808,67045.0,67044.0,0.001644]
[1729995445032,0.4544201,67045.0,67044.0,0.001644]
[1729995446159,0.50181108,67045.0,67044.0,0.001644]
[1729995446371,0.67941108,67045.0,67044.0,0.001644]
[1729995447308,0.67940761,67045.0,67044.0,0.001644]
[1729995447736,0.67941384,67045.0,67044.0,0.001644]
[1729995450896,0.7777904,67045.0,67044.0,0.001644]
[1729995451124,0.77778338,67045.0,67044.0,0.001644]
[1729995454020,0.77780058,67045.0,67044.0,0.001644]
[1729995454240,0.7778006,67045.0,67044.0,0.001644]
[1729995455116,0.91192581,67045.0,67044.0,0.001644]
[1729995458422,0.93692581,67045.0,67044.0,0.001644]
[1729995458654,0.84646237,67045.0,67044.0,0.001644]
[1729995459536,0.84846237,67045.0,67044.0,0.001644]
[1729995460648,0.94683893,67045.0,67044.0,0.001644]
[1729995461526,0.84846237,67045.0,67044.0,0.001644]
[1729995461748,0.99896618,67045.0,67044.0,0.001644]
[1729995462409,0.99895306,67045.0,67044.0,0.001644]
[1729995466040,0.98498453,67045.0,67044.0,0.001644]
[1729995466252,0.99895191,67045.0,67044.0,0.001644]
[1729995471339,0.99884987,67045.0,67044.0,0.001644]
[1729995473517,0.99885943,67045.0,67044.0,0.001644]
[1729995476256,0.01541921,67041.0,67040.0,0.001644]
[1729995476474,0.59237337,67041.0,67040.0,0.001644]
[1729995476685,0.59957067,67041.0,67040.0,0.001644]
[1729995476895,0.77926219,67041.0,67040.0,0.001644]
[1729995477116,0.59957067,67041.0,67040.0,0.001644]
[1729995477334,0.66823225,67041.0,67040.0,0.001644]
[1729995477547,0.80226782,67041.0,67040.0,0.001644]
[1729995478025,0.89596782,67041.0,67040.0,0.001644]
[1729995478230,0.89796782,67041.0,67040.0,0.001644]
[1729995480347,0.89596782,67041.0,67040.0,0.001644]
[1729995480840,0.8959748,67041.0,67040.0,0.001644]
[1729995481482,0.8979748,67041.0,67040.0,0.001644]
[1729995482314,0.76193923,67041.0,67040.0,0.001644]
[1729995482725,0.89601252,67041.0,67040.0,0.001644]
[1729995484214,0.76193923,67041.0,67040.0,0.001644]
[1729995485554,0.66356267,67041.0,67040.0,0.001644]
[1729995485777,0.79766956,67041.0,67040.0,0.001644]
[1729995486056,0.66356267,67041.0,67040.0,0.001644]
[1729995486272,0.79766956,67041.0,67040.0,0.001644]
[1729995488431,0.66356267,67041.0,67040.0,0.001644]
[1729995491397,0.6635747,67041.0,67040.0,0.001644]
[1729995493671,0.76195126,67041.0,67040.0,0.001644]
[1729995499293,0.76195131,67041.0,67040.0,0.001644]
[1729995499532,0.76395131,67041.0,67040.0,0.001644]
[1729995500211,0.76195131,67041.0,67040.0,0.001644]
[1729995502279,0.91274888,67041.0,67040.0,0.001644]
[1729995502747,0.9134285,67041.0,67040.0,0.001644]
[1729995503203,0.91342851,67041.0,67040.0,0.001644]
[1729995504379,0.76230634,67041.0,67040.0,0.001644]
[1729995506988,0.74831033,67041.0,67040.0,0.001644]
[1729995507208,0.76230634,67041.0,67040.0,0.001644]
[1729995511535,0.16458521,67039.0,67038.0,0.001644]
[1729995511761,0.69117878,67039.0,67038.0,0.001644]
[1729995511994,0.58251572,67039.0,67038.0,0.001644]
[1729995512219,0.3819402,67039.0,67038.0,0.001644]
[1729995512444,0.54725316,67039.0,67038.0,0.001644]
[1729995513617,0.69839643,67039.0,67038.0,0.001644]
[1729995514320,0.69838413,67039.0,67038.0,0.001644]
[1729995514543,0.69838024,67039.0,67038.0,0.001644]
[1729995515013,0.84888405,67039.0,67038.0,0.001644]
[1729995515233,0.84888336,67039.0,67038.0,0.001644]
[1729995515469,0.38193951,67039.0,67038.0,0.001644]
[1729995515699,0.54724348,67039.0,67038.0,0.001644]
[1729995516139,0.69837854,67039.0,67038.0,0.001644]
[1729995518368,0.69825798,67039.0,67038.0,0.001644]
[1729995518597,0.5471805,67039.0,67038.0,0.001644]
[1729995518824,0.63157688,67039.0,67038.0,0.001644]
[1729995519048,0.78265436,67039.0,67038.0,0.001644]
[1729995519523,0.76865904,67039.0,67038.0,0.001644]
[1729995519988,0.78264818,67039.0,67038.0,0.001644]
[1729995520892,0.6315707,67039.0,67038.0,0.001644]
[1729995521553,0.78264818,67039.0,67038.0,0.001644]
[1729995522466,0.6315707,67039.0,67038.0,0.001644]
[1729995523624,0.78264818,67039.0,67038.0,0.001644]
[1729995523836,0.78264727,67039.0,67038.0,0.001644]
[1729995524048,0.63156979,67039.0,67038.0,0.001644]
[1729995524266,0.78264727,67039.0,67038.0,0.001644]
[1729995524695,0.63156979,67039.0,67038.0,0.001644]
[1729995525121,0.78264727,67039.0,67038.0,0.001644]
[1729995525570,0.63156979,67039.0,67038.0,0.001644]
[1729995525772,0.72994635,67039.0,67038.0,0.001644]
[1729995527679,0.72996077,67039.0,67038.0,0.001644]
[1729995527910,0.71597254,67039.0,67038.0,0.001644]
[1729995528112,0.72996223,67039.0,67038.0,0.001644]
[1729995532089,0.72995953,67039.0,67038.0,0.001644]
[1729995532530,0.72992766,67039.0,67038.0,0.001644]
[1729995532742,0.64553128,67039.0,67038.0,0.001644]
[1729995536171,0.63154429,67039.0,67038.0,0.001644]
[1729995536376,0.6455304,67039.0,67038.0,0.001644]
[1729995540493,0.64552703,67039.0,67038.0,0.001644]
[1729995542267,0.79658856,67039.0,67038.0,0.001644]
[1729995542469,0.94709237,67039.0,67038.0,0.001644]
[1729995542694,0.79603084,67039.0,67038.0,0.001644]
[1729995542910,0.84871581,67039.0,67038.0,0.001644]
[1729995545022,0.69765428,67039.0,67038.0,0.001644]
[1729995545226,0.84871581,67039.0,67038.0,0.001644]
[1729995547199,0.83473307,67039.0,67038.0,0.001644]
[1729995548042,0.68367154,67039.0,67038.0,0.001644]
[1729995548278,0.69765711,67039.0,67038.0,0.001644]
[1729995549032,0.84870981,67039.0,67038.0,0.001644]
[1729995549468,0.69765711,67039.0,67038.0,0.001644]
[1729995549693,0.54849111,67039.0,67038.0,0.001644]
[1729995549918,0.69764976,67039.0,67038.0,0.001644]
[1729995553250,0.39797995,67039.0,67038.0,0.001644]
[1729995553456,0.35231837,67039.0,67038.0,0.001644]
[1729995553669,0.50148437,67039.0,67038.0,0.001644]
[1729995554561,0.50147753,67039.0,67038.0,0.001644]
[1729995554998,0.50147763,67039.0,67038.0,0.001644]
[1729995555919,0.50147801,67039.0,67038.0,0.001644]
[1729995557425,0.59985457,67039.0,67038.0,0.001644]
[1729995563941,0.59984331,67039.0,67038.0,0.001644]
[1729995568557,0.59984108,67039.0,67038.0,0.001644]
[1729995571657,0.43464512,67039.0,67038.0,0.001644]
[1729995571877,0.59984382,67039.0,67038.0,0.001644]
[1729995574068,0.58585787,67039.0,67038.0,0.001644]
[1729995574289,0.59984299,67039.0,67038.0,0.001644]
[1729995574568,0.59984357,67039.0,67038.0,0.001644]
[1729995576358,0.59983807,67039.0,67038.0,0.001644]
[1729995576569,0.43464487,67039.0,67038.0,0.001644]
[1729995578035,0.5998368,67039.0,67038.0,0.001644]
[1729995581628,0.5858511,67039.0,67038.0,0.001644]
[1729995581837,0.59984157,67039.0,67038.0,0.001644]
[1729995582266,0.64554475,67039.0,67038.0,0.001644]
[1729995583327,0.64554484,67039.0,67038.0,0.001644]
[1729995584201,0.63155428,67039.0,67038.0,0.001644]
[1729995585322,0.64554398,67039.0,67038.0,0.001644]
[1729995586382,0.63155428,67039.0,67038.0,0.001644]
[1729995589259,0.54716533,67039.0,67038.0,0.001644]
[1729995590366,0.53317728,67039.0,67038.0,0.001644]
[1729995598617,0.53319379,67039.0,67038.0,0.001644]
[1729995605633,0.72459379,67039.0,67038.0,0.001644]
[1729995605847,0.72659379,67039.0,67038.0,0.001644]
[1729995608274,0.73830422,67039.0,67038.0,0.001644]
[1729995611235,0.01541921,67033.0,67032.0,0.001644]
[1729995611471,0.57852326,67033.0,67032.0,0.001644]
[1729995611705,0.63141149,67033.0,67032.0,0.001644]
[1729995612356,0.58570831,67033.0,67032.0,0.001644]
[1729995613266,0.71981664,67033.0,67032.0,0.001644]
[1729995616772,0.71979871,67033.0,67032.0,0.001644]
[1729995617008,0.85144918,67033.0,67032.0,0.001644]
[1729995618094,0.71735878,67033.0,67032.0,0.001644]
[1729995618317,0.85145291,67033.0,67032.0,0.001644]
[1729995620452,0.5523151,67033.0,67032.0,0.001644]
[1729995620609,0.85139661,67033.0,67032.0,0.001644]
[1729995621212,0.71730753,67033.0,67032.0,0.001644]
[1729995621638,0.85139017,67033.0,67032.0,0.001644]
[1729995623923,0.71730753,67033.0,67032.0,0.001644]
[1729995624361,0.85138703,67033.0,67032.0,0.001644]
[1729995626730,0.71730753,67033.0,67032.0,0.001644]
[1729995626945,0.85138724,67033.0,67032.0,0.001644]
[1729995627391,0.85138724,67033.0,67032.0,0.00052944]
[1729995627813,0.71973677,67033.0,67032.0,0.00052944]
[1729995629725,0.71983363,67033.0,67032.0,0.00052944]
[1729995631494,0.58570532,67033.0,67032.0,0.00052944]
[1729995631699,0.71983363,67033.0,67032.0,0.00052944]
[1729995634865,0.63138314,67033.0,67032.0,0.00052944]
[1729995635080,0.83175487,67033.0,67032.0,0.00052944]
[1729995636631,0.63138916,67033.0,67032.0,0.00052944]
[1729995637990,0.71989702,67033.0,67032.0,0.00052944]
[1729995638345,0.63142819,67033.0,67032.0,0.00052944]
[1729995652934,0.38387163,67033.0,67032.0,0.00052944]
[1729995653592,0.38407415,67033.0,67032.0,0.00052944]
[1729995654022,0.53325415,67033.0,67032.0,0.00052944]
[1729995654450,0.53407615,67033.0,67032.0,0.00052944]
[1729995657951,0.38489615,67033.0,67032.0,0.00052944]
[1729995658163,0.53407615,67033.0,67032.0,0.00052944]
[1729995658378,0.53408766,67033.0,67032.0,0.00052944]
[1729995660605,0.37990766,67033.0,67032.0,0.00052944]
[1729995660837,0.38490766,67033.0,67032.0,0.00052944]
[1729995661053,0.53408766,67033.0,67032.0,0.00052944]
[1729995661744,0.53407875,67033.0,67032.0,0.00052944]
[1729995666263,0.53402354,67033.0,67032.0,0.00052944]
[1729995670977,0.53399173,67033.0,67032.0,0.00052944]
[1729995671602,0.53399144,67033.0,67032.0,0.00052944]
[1729995672270,0.53399443,67033.0,67032.0,0.00052944]
[1729995675768,0.53400421,67033.0,67032.0,0.00052944]
[1729995679139,0.63150421,67033.0,67032.0,0.00052944]
[1729995683564,0.64549066,67033.0,67032.0,0.00052944]
[1729995685249,0.64551057,67033.0,67032.0,0.00052944]
[1729995689972,0.64551062,67033.0,67032.0,0.00052944]
[1729995690892,0.54801062,67033.0,67032.0,0.00052944]
[1729995693497,0.53402412,67033.0,67032.0,0.00052944]
[1729995693716,0.54801186,67033.0,67032.0,0.00052944]
[1729995697150,0.54801232,67033.0,67032.0,0.00052944]
[1729995698426,0.38278617,67033.0,67032.0,0.00052944]
[1729995700647,0.54801823,67033.0,67032.0,0.00052944]
[1729995702395,0.38278617,67033.0,67032.0,0.00052944]
[1729995705272,0.33709827,67033.0,67032.0,0.00052944]
[1729995707503,0.38280594,67033.0,67032.0,0.00052944]
[1729995707951,0.36881774,67033.0,67032.0,0.00052944]
[1729995708198,0.38280708,67033.0,67032.0,0.00052944]
[1729995711790,0.38280512,67033.0,67032.0,0.00052944]
[1729995715894,0.38280557,67033.0,67032.0,0.00052944]
[1729995716556,0.69908177,67033.0,67032.0,0.00052944]
[1729995720414,0.69908142,67033.0,67032.0,0.00052944]
[1729995720547,0.38280522,67033.0,67032.0,0.00052944]
[1729995721578,0.54803086,67033.0,67032.0,0.00052944]
[1729995724371,0.69909518,67033.0,67032.0,0.00052944]
[1729995724843,0.54803086,67033.0,67032.0,0.00052944]
[1729995725521,0.5620185,67033.0,67032.0,0.00052944]
[1729995725727,0.54803102,67033.0,67032.0,0.00052944]
[1729995728979,0.54802728,67033.0,67032.0,0.00052944]
[1729995732626,0.53403964,67033.0,67032.0,0.00052944]
[1729995732877,0.54802726,67033.0,67032.0,0.00052944]
[1729995733285,0.69908728,67033.0,67032.0,0.00052944]
[1729995733943,0.53403964,67033.0,67032.0,0.00052944]
[1729995734184,0.68509966,67033.0,67032.0,0.00052944]
[1729995734446,0.53403964,67033.0,67032.0,0.00052944]
[1729995734896,0.54802757,67033.0,67032.0,0.00052944]
[1729995736192,0.54802769,67033.0,67032.0,0.00052944]
[1729995738546,0.54803271,67033.0,67032.0,0.00052944]